bitfinex/quotes_SOLUSD_20250731
["timestamp","ask_amount","ask_price","bid_price","bid_amount"]
[1753994132837,0.03,174.88,174.87,10.09243058]
[1753994133538,0.71,174.88,174.84,10.09243058]
[1753994133712,42.34,174.87,174.85,10.09243058]
[1753994134037,42.34,174.87,174.86,10.09243058]
[1753994134232,41.66,174.87,174.86,10.09243058]
[1753994135112,41.66,174.87,174.86,16.24129138]
[1753994135312,41.66,174.87,174.86,33.02597535]
[1753994135512,0.03,174.88,174.86,33.02597535]
[1753994135746,0.03,174.88,174.87,0.57185337]
[1753994135919,0.03,174.88,174.87,10.66428395]
[1753994136122,0.03,174.88,174.87,10.09243058]
[1753994136939,0.74,174.88,174.87,10.09243058]
[1753994137125,0.74,174.88,174.85,10.09243058]
[1753994137526,0.71,174.87,174.85,10.09243058]
[1753994137727,42.37,174.86,174.83,10.09243058]
[1753994137943,0.71,174.85,174.83,10.09243058]
[1753994138254,0.71,174.84,174.8,5.72075364]
[1753994138553,0.71,174.84,174.81,10.09243058]
[1753994138721,0.71,174.83,174.81,10.09243058]
[1753994139046,41.66,174.82,174.81,15.66205916]
[1753994140744,0.74,174.88,174.81,16.09205916]
[1753994140925,41.66,174.87,174.81,6.15049653]
[1753994141528,41.66,174.87,174.82,17.7867009]
[1753994141842,41.66,174.87,174.82,17.3567009]
[1753994142152,41.66,174.87,174.86,15.66205916]
[1753994142924,42.37,174.87,174.86,15.66205916]
[1753994143130,41.66,174.87,174.86,15.66205916]
[1753994143432,41.66,174.87,174.86,21.38091996]
[1753994147256,41.66,174.87,174.86,39.16749001]
[1753994147431,0.03,174.88,174.86,39.16749001]
[1753994147627,0.03,174.88,174.87,16.09205916]
[1753994147952,0.03,174.88,174.87,32.87674313]
[1753994148820,0.03,174.88,174.87,38.59527689]
[1753994149024,0.03,174.9,174.89,42.78468397]
[1753994149226,0.03,174.9,174.89,59.01853111]
[1753994149530,0.03,174.9,174.89,59.44853111]
[1753994150251,0.03,174.9,174.89,59.01853111]
[1753994150560,0.03,174.9,174.89,59.44853111]
[1753994150858,1e-08,174.9,174.89,65.16641092]
[1753994151748,1e-08,174.9,174.89,64.73641092]
[1753994152151,1e-08,174.9,174.89,65.16641092]
[1753994153156,41.64,174.97,174.89,108.05050949]
[1753994153338,41.64,174.97,174.96,15.66205916]
[1753994153530,42.35,174.97,174.96,15.66205916]
[1753994153861,0.71,174.97,174.96,15.66205916]
[1753994157155,0.71,174.97,174.92,0.57168991]
[1753994157156,0.71,174.97,174.94,5.71615345]
[1753994157657,41.84,174.99,174.96,15.66205916]
[1753994157870,42.55,174.99,174.98,15.66205916]
[1753994158161,41.84,174.99,174.98,15.66205916]
[1753994158749,41.84,174.99,174.98,11.07268831]
[1753994158946,41.84,174.99,174.98,16.78762716]
[1753994159152,0.2,174.99,174.98,16.78762716]
[1753994159331,0.2,174.99,174.98,34.00231113]
[1753994159534,0.2,174.99,174.98,33.57231113]
[1753994159733,0.2,174.99,174.98,16.78762716]
[1753994159956,0.91,174.99,174.98,11.07268831]
[1753994160162,0.91,174.99,174.98,5.71493885]
[1753994160348,0.91,174.99,174.98,11.07268831]
[1753994160547,0.91,174.99,174.98,16.78762716]
[1753994161562,0.2,174.99,174.98,16.78762716]
[1753994162168,0.91,174.99,174.98,16.78762716]
[1753994163239,0.2,174.99,174.98,16.78762716]
[1753994164461,0.89,174.99,174.98,16.78762716]
[1753994164657,0.89,174.99,174.98,11.07268831]
[1753994165266,0.89,174.99,174.96,11.07268831]
[1753994165471,42.29,174.98,174.96,11.07268831]
[1753994165770,0.69,174.97,174.96,11.07268831]
[1753994167250,0.69,174.97,174.96,16.78828044]
[1753994167561,41.6,174.98,174.96,16.78828044]
[1753994167767,41.6,174.98,174.97,11.07268831]
[1753994168066,42.29,174.98,174.97,11.07268831]
[1753994168442,42.29,174.98,174.94,5.71615494]
[1753994168768,0.69,174.97,174.96,11.07268831]
[1753994169065,41.6,174.98,174.96,11.07268831]
[1753994169269,41.6,174.98,174.97,16.78795378]
[1753994169644,0.2,174.99,174.97,16.78795378]
[1753994170040,0.2,174.99,174.98,11.07268831]
[1753994170463,0.89,174.99,174.97,11.07268831]
[1753994170772,0.89,174.99,174.92,26.45637388]
[1753994170773,0.89,174.99,174.93,5.71657234]
[1753994171068,0.69,174.98,174.95,11.07268831]
[1753994171954,0.69,174.97,174.95,11.07268831]
[1753994172254,42.29,174.96,174.93,5.71647155]
[1753994172466,42.29,174.96,174.95,11.07268831]
[1753994173180,42.29,174.96,174.92,11.07268831]
[1753994173359,0.69,174.95,174.91,11.07268831]
[1753994173744,0.69,174.95,174.91,16.78986753]
[1753994173941,41.6,174.96,174.91,16.78986753]
[1753994173942,0.69,174.94,174.91,16.78986753]
[1753994174168,41.6,174.96,174.92,11.07268831]
[1753994174366,0.69,174.94,174.92,11.07268831]
[1753994174773,0.69,174.93,174.92,11.07268831]
[1753994174958,0.69,174.93,174.89,5.71787474]
[1753994175170,0.69,174.95,174.93,5.71657234]
[1753994175376,41.6,174.94,174.93,5.71657234]
[1753994176495,41.6,174.94,174.93,16.78926065]
[1753994177992,41.6,174.96,174.93,16.78926065]
[1753994178193,41.6,174.96,174.95,11.07268831]
[1753994179588,41.6,174.96,174.95,16.78860714]
[1753994180266,0.89,174.99,174.95,16.78860714]
[1753994180468,42.27,174.98,174.95,5.71591883]
[1753994180683,42.27,174.98,174.97,11.07268831]
[1753994180902,42.27,174.98,174.93,5.71657234]
[1753994181208,41.58,174.98,174.97,11.07268831]
[1753994181707,42.27,174.98,174.97,11.07268831]
[1753994182185,59.05762716,174.98,174.93,11.07268831]
[1753994182388,11.07268831,174.94,174.9,0.06]
[1753994182730,41.58,174.93,174.9,0.06]
[1753994182868,42.27,174.93,174.9,0.06]
[1753994183071,0.69,174.92,174.9,0.06]
[1753994183268,0.69,174.92,174.9,16.85013614]
[1753994183489,41.58,174.93,174.9,11.13268831]
[1753994183685,0.69,174.91,174.9,0.06]
[1753994185183,41.58,174.93,174.9,11.13268831]
[1753994185393,42.27,174.93,174.91,11.07268831]
[1753994185595,41.58,174.93,174.92,11.07268831]
[1753994185904,41.58,174.93,174.92,16.78958746]
[1753994189420,0.2,174.99,174.92,17.21958746]
[1753994189600,42.27,174.98,174.97,11.07268831]
[1753994190522,42.27,174.98,174.91,0.5717226]
[1753994190689,0.69,174.97,174.96,11.07268831]
[1753994190888,0.69,174.97,174.95,11.07268831]
[1753994191122,41.58,174.98,174.95,11.07268831]
[1753994191321,0.69,174.96,174.95,11.07268831]
[1753994192112,11.76268831,174.96,174.91,11.07268831]
[1753994192316,11.76268831,174.96,174.9,0.06]
[1753994192317,11.07268831,174.93,174.9,0.06]
[1753994192498,11.07268831,174.91,174.9,0.06]
[1753994192698,42.27,174.92,174.9,0.06]
[1753994192919,0.69,174.91,174.9,0.06]
[1753994193419,42.27,174.91,174.9,0.06]
[1753994194024,41.58,174.91,174.9,16.85024119]
[1753994195536,42.27,174.91,174.9,5.77755288]
[1753994196934,41.58,174.91,174.9,16.85024119]
[1753994197227,41.58,174.91,174.9,28.3529295]
[1753994197841,41.58,174.91,174.9,17.28024119]
[1753994198046,41.58,174.91,174.9,45.13761347]
[1753994198341,41.58,174.91,174.9,45.70936875]
[1753994198539,41.58,174.91,174.9,34.20668044]
[1753994198744,41.58,174.91,174.9,45.70936875]
[1753994199451,41.58,174.94,174.91,16.78468397]
[1753994199618,41.58,174.94,174.93,11.07268831]
[1753994200648,41.58,174.94,174.93,16.78926065]
[1753994201214,42.27,174.94,174.93,16.78926065]
[1753994201940,53.34268831,174.94,174.9,0.06]
[1753994202154,11.76268831,174.93,174.9,0.06]
[1753994202320,11.07268831,174.92,174.9,0.06]
[1753994202524,11.76268831,174.92,174.9,0.06]
[1753994202828,0.69,174.91,174.9,0.06]
[1753994203435,11.76268831,174.91,174.9,0.06]
[1753994204016,19.85083773,174.91,174.9,0.06]
[1753994204217,16.01939107,174.91,174.9,0.06]
[1753994204423,19.85033006,174.91,174.9,0.06]
[1753994204716,8.77764175,174.91,174.9,0.06]
[1753994205023,46.50670276,174.91,174.9,0.06]
[1753994205430,57.57939107,174.91,174.9,0.06]
[1753994205934,42.25,174.91,174.9,0.06]
[1753994211062,59.03991431,174.91,174.9,0.06]
[1753994211528,63.29222863,174.91,174.9,0.06]
[1753994212038,42.25,174.91,174.9,0.06]
[1753994212540,4.79922343,174.98,174.9,11.13268831]
[1753994212541,0.69,174.94,174.9,11.13268831]
[1753994212732,0.69,174.96,174.9,0.06]
[1753994213060,45.81376574,174.95,174.91,11.07268831]
[1753994213242,0.69,174.94,174.91,11.07268831]
[1753994213434,0.69,174.94,174.92,11.07268831]
[1753994213761,41.56,174.95,174.92,11.07268831]
[1753994213937,0.69,174.94,174.91,11.07268831]
[1753994214255,0.69,174.93,174.91,11.07268831]
[1753994214461,41.56,174.92,174.91,11.07268831]
[1753994214644,41.56,174.92,174.91,16.78991431]
[1753994215456,41.56,174.92,174.91,5.717226]
[1753994215665,41.56,174.92,174.91,16.78991431]
[1753994216356,41.56,174.92,174.91,17.21991431]
[1753994216536,0.03,174.98,174.91,31.51297931]
[1753994216857,41.56,174.97,174.92,1.00168991]
[1753994217060,41.56,174.97,174.93,0.43]
[1753994217261,41.56,174.97,174.94,0.57162455]
[1753994217952,41.56,174.97,174.96,11.07268831]
[1753994218536,0.03,174.98,174.96,11.50268831]
[1753994218752,41.57,174.98,174.97,12.07421485]
[1753994219630,41.57,174.98,174.97,11.64421485]
[1753994220045,42.26,174.98,174.96,11.07268831]
[1753994220285,42.26,174.98,174.97,11.07268831]
[1753994220566,42.26,174.98,174.95,31.71588722]
[1753994220567,42.26,174.98,174.96,11.07268831]
[1753994220738,42.26,174.98,174.97,11.07268831]
[1753994220937,41.57,174.98,174.97,11.07268831]
[1753994222181,42.26,174.98,174.96,11.07268831]
[1753994222345,0.69,174.97,174.96,11.07268831]
[1753994223149,0.69,174.97,174.96,16.78828044]
[1753994223360,41.57,174.98,174.96,11.07268831]
[1753994223670,41.57,174.98,174.97,11.07268831]
[1753994224756,41.57,174.98,174.97,28.85889882]
[1753994226196,0.03,174.98,174.97,16.78795378]
[1753994227172,11.77268831,174.98,174.91,9.1]
[1753994227364,11.77268831,174.98,174.93,11.07268831]
[1753994227365,42.19,174.97,174.93,11.07268831]
[1753994227568,0.67,174.96,174.93,11.07268831]
[1753994227798,0.67,174.95,174.93,11.07268831]
[1753994227991,41.52,174.97,174.93,16.78900236]
[1753994228175,0.67,174.96,174.93,16.78900236]
[1753994228380,0.67,174.95,174.93,16.78900236]
[1753994228580,0.67,174.95,174.93,16.78924182]
[1753994228806,0.67,174.94,174.92,11.07268831]
[1753994229110,41.52,174.93,174.92,11.07268831]
[1753994229884,42.19,174.93,174.9,11.13268831]
[1753994230067,42.19,174.93,174.9,16.85013619]
[1753994230508,0.67,174.92,174.9,5.77744788]
[1753994230680,11.74268831,174.92,174.9,0.06]
[1753994230995,0.67,174.91,174.9,0.06]
[1753994232596,17.45991431,174.91,174.9,0.06]
[1753994232783,0.67,174.91,174.9,0.06]
[1753994232993,0.67,174.94,174.9,11.13268831]
[1753994233294,41.5,174.91,174.9,0.06]
[1753994234297,41.5,174.91,174.9,11.13268831]
[1753994234878,0.67,174.96,174.9,39.42006059]
[1753994235098,0.67,174.96,174.95,11.07268831]
[1753994235298,42.17,174.96,174.95,11.07268831]
[1753994235887,42.17,174.96,174.91,5.71715847]
[1753994236090,0.67,174.95,174.91,5.71715847]
[1753994236293,0.67,174.95,174.91,11.07268831]
[1753994237087,0.67,174.95,174.9,11.13268831]
[1753994237277,11.07268831,174.94,174.9,11.13268831]
[1753994237473,0.67,174.93,174.9,11.13268831]
[1753994237774,42.17,174.92,174.9,11.13268831]
[1753994238092,0.67,174.91,174.9,0.06]
[1753994238280,0.67,174.91,174.9,11.13268831]
[1753994238606,41.5,174.92,174.9,16.85019438]
[1753994239077,41.5,174.92,174.91,11.07268831]
[1753994239997,41.5,174.92,174.91,16.78991431]
[1753994244676,0.03,174.96,174.92,16.78468397]
[1753994244912,0.7,174.96,174.95,11.07268831]
[1753994245096,0.03,174.96,174.95,11.07268831]
[1753994247615,0.03,174.96,174.95,16.78860714]
[1753994250734,0.03,174.96,174.94,5.71612558]
[1753994250887,0.03,174.96,174.95,11.07268831]
[1753994252722,0.03,174.96,174.95,12.07428019]
[1753994253292,0.03,174.96,174.95,34.57488299]
[1753994255035,0.03,174.96,174.95,16.78860714]
[1753994256228,0.03,174.96,174.95,17.21860714]
[1753994256603,0.03,174.98,174.96,42.78468397]
[1753994256823,0.03,175.0,174.98,16.78468397]
[1753994257022,4.79922343,175.11,175.0,16.78468397]
[1753994257023,4.54048228,175.09,175.0,16.78468397]
[1753994257325,4.54048228,175.09,175.05,11.07268831]
[1753994257326,41.46,175.07,175.05,11.07268831]
[1753994257523,41.46,175.07,175.01,11.64408423]
[1753994257524,0.91,175.06,175.03,11.07268831]
[1753994257726,11.98268831,175.06,175.01,11.07268831]
[1753994257922,0.71,175.05,175.01,11.07268831]
[1753994258433,11.78268831,175.05,175.0,11.07268831]
[1753994258723,0.71,175.04,175.0,11.07268831]
[1753994259034,0.71,175.04,175.0,16.78693539]
[1753994260201,0.71,175.04,175.01,11.07268831]
[1753994260402,11.07268831,175.03,174.97,26.57152654]
[1753994260742,42.17,175.02,174.99,11.07268831]
[1753994260914,0.71,175.01,174.99,11.07268831]
[1753994261830,0.71,175.01,175.0,11.07268831]
[1753994262034,0.71,175.01,174.99,11.07268831]
[1753994262235,41.46,175.02,174.99,11.07268831]
[1753994262442,0.71,175.0,174.98,11.07268831]
[1753994262624,0.71,175.0,174.97,5.71525444]
[1753994262948,0.71,175.0,174.98,11.07268831]
[1753994263946,0.71,174.99,174.95,11.07268831]
[1753994264160,41.44,174.98,174.94,16.78893387]
[1753994264455,0.71,174.97,174.94,16.78893387]
[1753994264838,0.71,174.97,174.95,11.07268831]
[1753994265366,0.71,174.97,174.95,16.78859127]
[1753994266559,41.44,174.98,174.96,11.07268831]
[1753994266720,0.71,174.97,174.95,11.07268831]
[1753994266925,41.44,174.98,174.95,11.07268831]
[1753994267155,0.71,174.96,174.95,11.07268831]
[1753994267756,42.15,174.98,174.95,16.78846369]
[1753994267956,41.44,174.98,174.97,11.07268831]
[1753994268464,0.74,175.01,174.97,11.50268831]
[1753994268465,0.03,175.01,174.97,11.50268831]
[1753994268760,41.47,175.01,174.98,26.0]
[1753994268934,41.47,175.01,175.0,11.07268831]
[1753994269841,41.47,175.01,175.0,16.78697402]
[1753994270965,41.47,175.01,175.0,5.71428571]
[1753994271171,42.18,175.01,174.98,26.0]
[1753994271339,0.03,175.01,175.0,11.07268831]
[1753994272557,11.81268831,175.01,174.96,11.07268831]
[1753994272761,0.03,175.11,175.0,22.14537662]
[1753994272959,0.74,175.11,175.01,37.50268831]
[1753994273258,0.03,175.11,175.1,11.07268831]
[1753994273438,0.03,175.11,175.1,28.28737228]
[1753994273639,0.1,175.14,175.13,42.78468397]
[1753994273970,0.1,175.14,175.13,67.99506507]
[1753994274143,0.1,175.14,175.13,68.42506507]
[1753994276168,0.1,175.14,175.13,51.2103811]
[1753994276343,0.1,175.14,175.13,42.78273227]
[1753994276546,0.81,175.14,175.13,16.78273227]
[1753994276768,0.81,175.14,175.13,42.78273227]
[1753994276944,0.1,175.14,175.13,42.78273227]
[1753994278365,0.81,175.14,175.13,42.78273227]
[1753994278754,0.81,175.14,175.13,26.0]
[1753994278971,0.81,175.14,175.11,11.07268831]
[1753994279269,42.06,175.13,175.11,11.07268831]
[1753994279465,0.71,175.12,175.11,11.07268831]
[1753994279859,42.06,175.13,175.11,16.78309529]
[1753994280063,42.06,175.13,175.12,11.07268831]
[1753994280064,42.02,175.13,175.12,11.07268831]
[1753994280449,42.73,175.13,175.12,26.0]
[1753994280651,42.73,175.13,175.04,0.57129798]
[1753994280868,11.07268831,175.1,175.03,5.71330629]
[1753994281055,0.71,175.09,175.04,11.07268831]
[1753994281254,0.71,175.08,175.03,5.71330629]
[1753994281474,42.77,175.07,175.05,11.07268831]
[1753994281654,0.71,175.06,175.05,11.07268831]
[1753994282743,0.71,175.06,175.02,5.71354327]
[1753994282948,42.06,175.07,175.04,11.07268831]
[1753994283149,42.77,175.07,175.05,11.07268831]
[1753994283368,0.71,175.08,175.05,11.07268831]
[1753994283569,0.71,175.09,175.07,11.07268831]
[1753994283770,42.02,175.08,175.07,11.07268831]
[1753994285095,0.7,175.1,175.07,11.07268831]
[1753994285256,0.7,175.13,175.09,11.07268831]
[1753994285458,42.7,175.12,175.1,11.07268831]
[1753994285662,42.0,175.11,175.1,11.07268831]
[1753994285889,42.7,175.11,175.1,11.07268831]
[1753994286466,0.7,175.11,175.1,11.07268831]
[1753994286660,42.0,175.11,175.1,11.07268831]
[1753994286991,42.7,175.11,175.08,5.71159184]
[1753994287291,0.7,175.1,175.09,11.07268831]
[1753994287466,0.7,175.1,175.07,0.06]
[1753994287669,42.66,175.09,175.08,11.07268831]
[1753994288298,42.66,175.09,175.07,0.06]
[1753994288581,41.96,175.09,175.07,0.06]
[1753994288786,42.66,175.09,175.07,16.84463938]
[1753994288956,41.96,175.09,175.08,11.07268831]
[1753994290177,0.03,175.13,175.08,16.78436297]
[1753994290411,41.96,175.09,175.08,5.71167466]
[1753994290567,41.96,175.09,175.07,0.06]
[1753994290885,41.94,175.08,175.07,0.06]
[1753994291487,42.64,175.08,175.07,0.06]
[1753994293203,0.7,175.08,175.07,26.06]
[1753994293375,42.64,175.08,175.07,26.06]
[1753994293875,42.64,175.08,175.07,0.06]
[1753994294079,53.71268831,175.08,175.07,0.06]
[1753994294684,42.64,175.08,175.07,0.06]
[1753994295289,59.42436297,175.08,175.07,0.06]
[1753994298401,79.00715342,175.08,175.07,0.06]
[1753994298718,82.82119195,175.08,175.07,0.06]
[1753994298927,82.82119195,175.08,175.05,0.06]
[1753994298928,42.78468397,175.06,175.05,0.06]
[1753994299099,57.67141081,175.06,175.05,0.06]
[1753994299313,58.37141081,175.06,175.05,0.06]
[1753994299832,64.08373801,175.06,175.05,0.06]
[1753994300003,64.08373801,175.06,175.05,1e-08]
[1753994301746,85.32501551,175.06,175.05,1e-08]
[1753994302038,89.13674916,175.06,175.05,1e-08]
[1753994303434,41.16,175.1,175.05,1e-08]
[1753994303616,41.86,175.09,175.05,11.07268832]
[1753994303815,41.86,175.09,175.05,1e-08]
[1753994303816,53.63268831,175.09,175.05,1e-08]
[1753994304343,52.93268831,175.09,175.05,1e-08]
[1753994305133,41.84,175.08,175.05,11.50268832]
[1753994305436,41.84,175.08,175.05,1e-08]
[1753994306124,41.82,175.07,175.05,1e-08]
[1753994307015,11.77268831,175.06,175.05,1e-08]
[1753994308725,17.48501551,175.06,175.05,1e-08]
[1753994311714,21.28934861,175.06,175.05,1e-08]
[1753994312529,64.07403258,175.06,175.05,1e-08]
[1753994312732,66.18782072,175.06,175.05,1e-08]
[1753994312940,42.78468397,175.04,175.03,0.06]
[1753994313145,99.38170538,175.04,175.03,0.06]
[1753994313314,105.79468527,175.04,175.03,0.06]
[1753994313811,105.79468527,175.04,174.92,0.43]
[1753994313812,120.07713499,175.04,174.92,0.43]
[1753994314020,4.5043331,175.03,174.92,35.53]
[1753994314240,11.07268831,174.97,174.92,46.60268831]
[1753994314436,41.7,174.96,174.93,0.43]
[1753994314634,52.77268831,174.96,174.93,0.43]
[1753994314836,11.07268831,174.95,174.93,0.43]
[1753994315041,41.7,174.94,174.92,26.0]
[1753994315230,11.07268831,174.93,174.92,26.0]
[1753994316631,11.07268831,174.93,174.9,0.06]
[1753994316826,11.07268831,174.91,174.9,5.77755288]
[1753994317022,41.68,174.92,174.9,5.77755288]
[1753994317023,52.75268831,174.92,174.9,5.77755288]
[1753994317636,52.75268831,174.92,174.9,0.06]
[1753994317637,11.07268831,174.91,174.9,0.06]
[1753994318860,26.66,174.98,174.9,0.49]
[1753994319153,11.07268831,174.94,174.9,6.20747391]
[1753994319355,6.37459532,175.0,174.92,11.07268831]
[1753994319558,11.07268831,174.94,174.9,32.20747391]
[1753994319767,41.68,174.93,174.92,26.0]
[1753994320138,41.68,174.93,174.92,26.43]
[1753994320658,41.68,174.93,174.91,5.71720741]
[1753994321044,41.68,174.93,174.91,17.21989572]
[1753994321361,41.68,174.93,174.91,5.71720741]
[1753994322157,52.75268831,174.93,174.91,26.0]
[1753994322453,41.68,174.93,174.92,26.0]
[1753994322629,53.41268831,174.93,174.92,26.0]
[1753994323051,53.41268831,174.93,174.91,26.0]
[1753994323260,11.07268831,174.92,174.9,0.06]
[1753994323451,52.73268831,174.91,174.9,0.06]
[1753994323862,41.66,174.91,174.9,0.06]
[1753994324160,41.66,174.91,174.9,5.77755288]
[1753994324547,41.66,174.91,174.9,0.06]
[1753994325657,53.39268831,174.91,174.9,0.06]
[1753994327158,59.10991431,174.91,174.9,0.06]
[1753994329742,61.94754847,174.91,174.9,0.06]
[1753994329936,50.87486016,174.91,174.9,0.06]
[1753994330242,61.94754847,174.91,174.9,0.06]
[1753994332662,89.80492075,174.91,174.89,0.2]
[1753994332849,22.80537662,174.9,174.89,0.2]
[1753994333057,39.59006059,174.9,174.89,0.2]
[1753994333241,27.85737228,174.89,174.88,0.06]
[1753994333440,0.66,174.9,174.84,11.50268831]
[1753994333642,67.2,174.94,174.89,11.07268831]
[1753994333643,41.2,174.94,174.89,11.07268831]
[1753994333964,11.07268831,174.92,174.87,37.07268831]
[1753994334143,11.07268831,174.91,174.87,26.43]
[1753994334340,42.34,174.93,174.87,26.0]
[1753994334341,41.74,174.9,174.87,26.0]
[1753994334648,41.74,174.89,174.88,0.43]
[1753994334838,52.81268831,174.89,174.87,26.0]
[1753994335045,11.07268831,174.88,174.84,26.0]
[1753994335243,11.07268831,174.85,174.78,0.06]
[1753994335441,11.07268831,174.79,174.78,0.06]
[1753994335642,52.91268831,174.79,174.78,0.06]
[1753994336173,53.57268831,174.79,174.78,0.06]
[1753994336344,81.43006059,174.79,174.78,1e-08]
[1753994336765,16.78468397,174.78,174.76,0.06]
[1753994336948,94.17268831,174.77,174.76,0.06]
[1753994337159,94.17268831,174.77,174.72,0.06]
[1753994337160,16.78468397,174.74,174.72,0.06]
[1753994337362,58.69580397,174.73,174.72,0.06]
[1753994337674,59.35580397,174.73,174.72,0.06]
[1753994338573,17.45580397,174.73,174.72,0.06]
[1753994338742,59.39580397,174.73,174.72,0.06]
[1753994340549,47.64311566,174.73,174.72,0.06]
[1753994340764,58.71580397,174.73,174.72,0.06]
[1753994341467,46.92188732,174.77,174.72,0.55]
[1753994341673,11.07268831,174.74,174.72,0.06]
[1753994341856,52.99268831,174.73,174.72,0.06]
[1753994342273,53.65268831,174.73,174.72,0.06]
[1753994343377,59.37580397,174.73,174.72,0.06]
[1753994346663,59.33580397,174.73,174.72,0.06]
[1753994347376,76.12048794,174.73,174.72,0.06]
[1753994347764,26.72,174.76,174.72,0.06]
[1753994347970,11.07268831,174.74,174.72,0.06]
[1753994348188,41.86,174.73,174.72,0.06]
[1753994348770,11.07268831,174.75,174.72,0.06]
[1753994348972,41.86,174.74,174.72,0.06]
[1753994349193,41.2,174.77,174.72,0.06]
[1753994349497,58.65490668,174.76,174.72,0.06]
[1753994349663,11.07268831,174.75,174.72,0.06]
[1753994349867,41.84,174.74,174.72,0.06]
[1753994351184,47.56287487,174.74,174.72,0.06]
[1753994352685,47.59287487,174.74,174.72,0.06]
[1753994355284,41.87,174.74,174.72,0.06]
[1753994357497,11.79268831,174.73,174.72,0.06]
[1753994358088,41.7,174.73,174.72,0.06]
[1753994358293,0.03,174.74,174.72,0.06]
[1753994358515,0.03,174.74,174.73,11.56268831]
[1753994358885,41.77,174.74,174.73,11.56268831]
[1753994359091,41.77,174.74,174.73,17.28580397]
[1753994359518,0.03,174.74,174.73,17.28580397]
[1753994359820,41.77,174.74,174.73,17.28580397]
[1753994359987,0.03,174.74,174.73,17.28580397]
[1753994360188,41.75,174.74,174.73,34.6427995]
[1753994360405,41.75,174.74,174.73,34.07048794]
[1753994360630,0.03,174.74,174.73,34.07048794]
[1753994360920,0.03,174.76,174.75,42.78468397]
[1753994361124,0.03,174.76,174.75,59.57983293]
[1753994361295,41.75,174.76,174.75,60.06983293]
[1753994361490,0.03,174.76,174.75,60.06983293]
[1753994361714,41.75,174.76,174.75,60.06983293]
[1753994361902,41.73,174.76,174.75,60.06983293]
[1753994363991,41.73,174.76,174.72,26.55]
[1753994364204,41.73,174.76,174.75,11.07268831]
[1753994364518,41.69,174.76,174.75,11.56268831]
[1753994364826,41.71,174.76,174.75,11.07268831]
[1753994365524,41.71,174.76,174.73,15.88542722]
[1753994365724,41.71,174.76,174.75,11.07268831]
[1753994366415,41.71,174.76,174.75,16.79514896]
[1753994367139,41.71,174.76,174.75,11.07268831]
[1753994367315,42.43,174.76,174.73,20.17268831]
[1753994367498,0.03,174.76,174.75,11.07268831]
[1753994367702,41.69,174.76,174.75,37.07268831]
[1753994368133,0.03,174.76,174.75,37.07268831]
[1753994368306,0.03,174.76,174.75,37.56268831]
[1753994368628,41.69,174.76,174.75,43.28514896]
[1753994369000,41.69,174.76,174.75,26.0]
[1753994369201,42.41,174.76,174.73,9.1]
[1753994369427,0.72,174.75,174.73,9.1]
[1753994369632,41.69,174.76,174.74,11.07268831]
[1753994369633,0.03,174.76,174.74,11.07268831]
[1753994369833,0.03,174.76,174.75,11.07268831]
[1753994370013,41.67,174.76,174.73,14.82309001]
[1753994370207,0.72,174.75,174.73,9.1]
[1753994370408,0.72,174.75,174.73,20.17268831]
[1753994371315,0.03,174.76,174.75,26.0]
[1753994371518,41.67,174.76,174.75,37.07268831]
[1753994371850,0.03,174.76,174.75,37.56268831]